bitfinex/quotes_ETHUSD_20250414
["timestamp","ask_amount","ask_price","bid_price","bid_amount"]
[1744661188298,20.0700406,1632.2,1632.1,0.05]
[1744661189387,23.04987653,1632.2,1632.1,1e-05]
[1744661190569,23.3685549,1632.2,1632.1,1e-05]
[1744661193298,25.44671897,1632.2,1632.1,1e-05]
[1744661193677,28.9765549,1632.2,1632.1,1e-05]
[1744661194593,25.99671897,1632.2,1632.1,1e-05]
[1744661195404,20.38871897,1632.2,1632.1,1e-05]
[1744661195568,25.99671897,1632.2,1632.1,1e-05]
[1744661195777,20.38871897,1632.2,1632.1,1e-05]
[1744661196111,25.99671897,1632.2,1632.1,1e-05]
[1744661196309,18.7478406,1632.2,1632.1,1e-05]
[1744661196504,17.8747,1632.2,1632.1,1e-05]
[1744661197084,20.8747,1632.2,1632.1,1e-05]
[1744661197499,17.8747,1632.2,1632.1,1e-05]
[1744661197815,20.8747,1632.2,1632.1,1e-05]
[1744661198584,9.14,1632.2,1632.1,1e-05]
[1744661198783,59.50544,1632.3,1632.1,0.75431]
[1744661199079,65.63204,1632.3,1632.1,0.75431]
[1744661199284,0.31958325,1632.4,1632.1,0.75431]
[1744661199483,0.31958325,1632.4,1632.3,0.7543]
[1744661199684,6.44552325,1632.4,1632.3,0.7543]
[1744661200112,6.1267,1632.2,1632.1,1e-05]
[1744661200501,6.12649,1632.3,1632.2,0.8185]
[1744661201818,9.44555325,1632.4,1632.2,0.8185]
[1744661202128,3.0,1632.4,1632.2,0.8185]
[1744661202286,9.12596,1632.4,1632.2,0.8185]
[1744661202622,15.25206,1632.4,1632.2,0.8185]
[1744661202822,6.12632,1632.3,1632.2,0.8185]
[1744661204222,9.12596,1632.4,1632.2,0.8185]
[1744661204523,3.0,1632.4,1632.2,6.9451]
[1744661204727,3.0,1632.4,1632.2,12.25318]
[1744661204939,5.608,1632.5,1632.1,0.82961]
[1744661205141,13.45883593,1632.2,1632.1,1e-05]
[1744661205508,10.479,1632.2,1632.1,1e-05]
[1744661205704,9.58042569,1632.2,1632.1,1e-05]
[1744661205936,6.58042569,1632.2,1632.1,1e-05]
[1744661206166,12.253,1632.3,1632.1,1e-05]
[1744661206341,6.1267,1632.2,1632.1,1e-05]
[1744661207938,6.57594207,1632.2,1632.1,1e-05]
[1744661209243,9.57594207,1632.2,1632.1,1e-05]
[1744661214042,15.71594207,1632.2,1632.1,1e-05]
[1744661214569,20.008278,1632.2,1632.1,1e-05]
[1744661214730,22.8356678,1632.2,1632.1,1e-05]
[1744661216158,23.1543561,1632.2,1632.1,1e-05]
[1744661216686,23.99798404,1632.2,1632.1,1e-05]
[1744661216968,23.99798404,1632.2,1631.3,0.7508]
[1744661216969,6.1297,1631.4,1631.3,0.7508]
[1744661217169,6.13045,1631.2,1631.1,0.87099103]
[1744661219268,6.13038,1631.3,1631.1,0.87099103]
[1744661219573,6.13045,1631.2,1631.1,0.87099103]
[1744661220567,11.73456,1631.5,1631.1,0.87099103]
[1744661220772,3.0,1631.4,1631.1,0.87099103]
[1744661221183,6.13003,1631.4,1631.1,0.87099103]
[1744661221472,6.1303,1631.3,1631.1,0.87099103]
[1744661221973,0.45090981,1631.4,1631.2,6.94895]
[1744661222170,5.606,1631.5,1631.2,0.8187]
[1744661222372,9.44864608,1631.6,1631.3,6.12979]
[1744661222531,12.2688,1631.7,1631.5,0.7832]
[1744661222732,6.12895,1631.6,1631.5,0.7832]
[1744661223268,6.5879011,1631.6,1631.5,0.7832]
[1744661226382,6.12895,1631.6,1631.5,0.7832]
[1744661227263,6.12982,1631.4,1631.3,0.7595]
[1744661228069,6.13045,1631.2,1631.1,0.82619103]
[1744661228442,6.13045,1631.2,1631.1,0.05669103]
[1744661228864,6.59483745,1631.2,1631.1,0.05669103]
[1744661229070,16.28482745,1631.2,1631.1,0.05669103]
[1744661229254,19.9603602,1631.2,1631.1,0.05669103]
[1744661236303,23.73297275,1631.2,1631.1,0.05669103]
[1744661236609,20.87844,1631.2,1631.1,0.05669103]
[1744661236789,15.27044,1631.2,1631.1,0.05669103]
[1744661236989,20.87844,1631.2,1631.1,0.05669103]
[1744661237205,21.42844,1631.2,1631.1,0.05669103]
[1744661237504,24.797334,1631.2,1631.1,0.05669103]
[1744661238091,25.11693564,1631.2,1631.1,0.05669103]
[1744661239312,25.92643564,1631.2,1631.1,0.05669103]
[1744661245530,25.92643564,1631.2,1630.5,0.005]
[1744661245531,3.0,1630.7,1630.5,0.005]
[1744661245734,14.73771,1630.6,1630.5,0.005]
[1744661245888,18.978364,1630.6,1630.5,0.005]
[1744661246437,6.13421,1630.2,1630.1,1e-05]
[1744661246587,11.74499,1630.2,1630.1,1e-05]
[1744661246789,20.8792,1630.2,1630.1,0.75451]
[1744661247025,14.74499,1630.2,1630.1,0.70451]
[1744661247230,20.8792,1630.2,1630.1,0.70451]
[1744661247528,5.605,1630.2,1630.1,0.70451]
[1744661247738,11.73921,1630.2,1630.1,0.70451]
[1744661247903,5.605,1630.2,1630.1,0.70451]
[1744661249116,11.73921,1630.2,1630.1,0.70451]
[1744661249693,11.73931,1630.2,1629.9,0.005]
[1744661249887,11.73931,1630.2,1630.0,0.7861]
[1744661250116,11.73931,1630.2,1629.9,6.14023]
[1744661250324,9.13473,1630.1,1629.9,0.005]
[1744661250846,3.0,1630.1,1629.9,0.005]
[1744661251048,9.13461,1630.1,1629.9,0.005]
[1744661251263,6.13496,1630.0,1629.9,0.005]
[1744661252328,6.96886337,1630.0,1629.9,0.005]
[1744661252735,16.10885337,1630.0,1629.9,0.005]
[1744661252937,16.10885337,1630.0,1629.4,6.5339034]
[1744661252938,10.51475,1629.5,1629.4,0.3966834]
[1744661253123,22.26174,1629.5,1629.4,0.3966834]
[1744661253322,10.51588,1629.2,1629.1,1e-05]
[1744661253525,8.607,1629.2,1629.1,1e-05]
[1744661253726,15.29498,1629.2,1629.1,1e-05]
[1744661253963,8.607,1629.2,1629.1,1e-05]
[1744661254162,14.74498,1629.2,1629.1,1e-05]
[1744661254347,16.26584161,1629.2,1629.1,1e-05]
[1744661254548,16.81584161,1629.2,1629.1,1e-05]
[1744661255046,16.26584161,1629.2,1629.1,1e-05]
[1744661255252,5.607,1629.2,1629.1,1e-05]
[1744661255448,5.607,1629.5,1629.1,3.78764593]
[1744661255649,11.74406,1629.5,1629.1,9.92586593]
[1744661255824,11.74406,1629.5,1629.1,6.94599]
[1744661256050,5.607,1629.5,1629.1,6.94599]
[1744661256266,12.95031691,1629.5,1629.1,0.80781]
[1744661256451,6.13736,1629.4,1629.1,0.80781]
[1744661256766,6.13736,1629.4,1629.1,6.94615]
[1744661256767,6.13724,1629.4,1629.1,6.94615]
[1744661256943,6.13724,1629.4,1629.1,0.80781]
[1744661257265,6.13724,1629.4,1629.1,6.94616]
[1744661257461,8.04599569,1629.4,1629.1,0.80781]
[1744661258077,6.13762,1629.3,1629.1,0.80781]
[1744661258437,8.51074762,1629.4,1629.1,0.80781]
[1744661258667,5.607,1629.5,1629.3,6.13739]
[1744661258976,6.06459672,1629.8,1629.5,6.91389]
[1744661259133,5.609,1629.8,1629.6,6.1363]
[1744661259332,5.609,1629.8,1629.6,6.13626]
[1744661259775,0.31961549,1630.0,1629.6,2.135724]
[1744661260083,6.13465,1630.1,1629.6,2.135724]
[1744661260084,6.13465,1630.1,1629.8,6.90222]
[1744661260263,5.609,1630.0,1629.8,6.90222]
[1744661260740,11.74365,1630.1,1629.8,6.90222]
[1744661261674,6.58767422,1630.2,1629.8,13.0378]
[1744661261878,47.834,1630.3,1629.9,0.06135101]
[1744661262179,5.609,1630.2,1630.1,0.7638]
[1744661262583,47.834,1630.3,1630.1,0.7638]
[1744661262872,59.57685,1630.3,1630.1,0.7638]
[1744661263188,65.71088,1630.3,1630.1,0.7638]
[1744661263673,6.13421,1630.2,1630.1,0.7638]
[1744661263873,6.13516,1630.0,1629.8,0.7992]
[1744661264042,11.74363,1630.1,1629.8,6.93486]
[1744661264241,5.609,1630.1,1629.9,6.13534]
[1744661264440,0.8075,1630.6,1629.9,6.13534]
[1744661264441,0.319523,1630.7,1629.9,3.79033037]
[1744661264759,6.13346,1630.4,1630.3,0.7992]
[1744661265786,6.59421405,1630.6,1630.3,0.7992]
[1744661265941,6.13236,1630.7,1630.4,6.13337]
[1744661266290,5.609,1630.8,1630.6,6.13259]
[1744661266582,12.26487,1630.7,1630.3,6.93299]
[1744661266763,6.1331,1630.5,1630.3,0.7992]
[1744661266943,6.13346,1630.4,1630.3,0.7992]
[1744661268175,6.13418,1630.3,1629.9,0.8235]
[1744661268352,0.45361826,1630.9,1630.6,0.8235]
[1744661268559,8.608,1630.9,1630.6,6.95606]
[1744661268876,14.73958,1630.9,1630.6,6.95596]
[1744661269171,8.608,1630.9,1630.7,6.13232]
[1744661269378,8.608,1630.9,1630.6,6.95596]
[1744661269379,20.8715,1630.9,1630.6,6.95596]
[1744661269778,14.73969,1630.9,1630.6,0.8235]
[1744661269986,16.26005175,1630.9,1630.6,6.95618]
[1744661270342,22.39187175,1630.9,1630.6,6.95618]
[1744661270780,22.39187175,1630.9,1630.6,0.8235]
[1744661271987,0.31943558,1631.2,1631.1,6.13083]
[1744661272168,0.8243,1631.8,1631.1,0.8182]
[1744661272169,5.608,1631.7,1631.1,0.8182]
[1744661272486,10.00920939,1631.6,1631.2,6.13021]
[1744661272691,6.12965,1631.5,1631.1,7.01026373]
[1744661272891,6.13001,1631.4,1631.1,0.8182]
[1744661273189,6.13024,1631.3,1631.1,0.8182]
[1744661273596,6.13045,1631.2,1631.1,0.8182]
[1744661274094,6.13099,1631.1,1630.9,0.7807]
[1744661274285,12.2621,1631.1,1630.9,0.7807]
[1744661274600,6.13099,1631.1,1630.9,0.7807]
[1744661275409,6.1312,1631.0,1630.9,0.7807]
[1744661276408,6.13215,1630.8,1630.7,0.8276]
[1744661277001,0.613099,1631.0,1630.7,0.8276]
[1744661277196,6.13174,1630.9,1630.7,0.8276]
[1744661277512,12.26362,1630.9,1630.7,0.8276]
[1744661277902,6.13195,1630.8,1630.7,0.8276]
[1744661278304,6.13174,1630.9,1630.5,0.7695]
[1744661278305,6.13276,1630.6,1630.5,0.7695]
[1744661278501,6.13241,1630.7,1630.5,0.7695]
[1744661278903,6.13203,1630.8,1630.5,0.83082339]
[1744661279072,11.94075,1630.9,1630.5,6.90239]
[1744661279279,11.94075,1630.9,1630.6,6.1327]
[1744661279626,6.13214,1630.8,1630.5,6.90239]
[1744661279789,6.13214,1630.8,1630.5,13.09668322]
[1744661279990,11.94063,1630.9,1630.6,6.13265]
[1744661280215,5.809,1630.9,1630.6,6.13248]
[1744661280518,6.13048,1631.2,1630.9,6.13148]
[1744661280699,6.12969,1631.5,1630.9,6.13144]
[1744661280700,9.13044,1631.3,1630.9,6.13144]
[1744661280901,7.043574,1631.2,1630.8,6.94315]
[1744661281101,6.13097,1631.1,1630.8,6.94315]
[1744661281482,6.13097,1631.1,1630.8,0.8113]
[1744661281678,6.13097,1631.1,1630.8,6.94311]
[1744661281919,6.13097,1631.1,1630.8,13.07493]
[1744661282120,6.13093,1631.1,1630.9,0.06130942]
[1744661282320,6.13015,1631.3,1631.0,0.7903]
[1744661282504,6.13079,1631.2,1631.0,0.7903]
[1744661282905,6.13083,1631.1,1631.0,0.7903]
[1744661283104,6.13158,1630.9,1630.8,0.7903]
[1744661283424,14.101103,1631.1,1630.8,6.92224]
[1744661283857,14.101293,1631.1,1630.8,0.85161321]
[1744661284012,12.26208,1631.1,1630.8,6.98346321]
[1744661284180,6.13121,1631.0,1630.8,0.85161321]
[1744661284995,6.13121,1631.0,1630.8,0.7903]
[1744661286098,6.13158,1630.9,1630.8,0.7903]
[1744661286409,12.2611,1631.2,1630.8,6.92214]
[1744661286723,13.48721,1631.2,1630.9,6.13158]
[1744661286931,8.809,1631.4,1631.0,0.7774]
[1744661287093,6.1314,1631.0,1630.8,0.7774]
[1744661287426,6.13158,1630.9,1630.8,0.7774]
[1744661287680,6.13206,1630.8,1630.6,0.7874]
[1744661288750,12.26334,1630.9,1630.6,6.9199]
[1744661289822,6.1316,1630.9,1630.6,13.1138008]
[1744661290123,6.1316,1630.9,1630.6,14.36386008]
[1744661290725,12.27092,1631.1,1630.8,6.13195]
[1744661290956,6.13999,1631.1,1630.9,6.97395195]
[1744661291143,12.27093,1631.1,1630.9,0.7812]
[1744661292356,6.13999,1631.1,1630.9,6.9740681]
[1744661292524,6.13999,1631.1,1631.0,6.1312]
[1744661292851,5.808,1631.2,1631.0,6.13113]
[1744661293017,5.808,1631.2,1630.9,7.61001681]
[1744661293018,11.9385,1631.2,1630.9,7.61001681]
[1744661293211,18.06915,1631.2,1630.9,7.61001681]
[1744661294356,11.9385,1631.2,1630.9,7.61001681]
[1744661294508,11.9385,1631.2,1630.9,7.67132454]
[1744661294718,11.9385,1631.2,1630.9,13.80277454]
[1744661294912,11.9385,1631.2,1630.9,13.74146681]
[1744661295154,18.0692,1631.2,1630.9,7.61001681]
[1744661295358,12.2612,1631.2,1630.9,0.7812]
[1744661295656,6.1306,1631.2,1630.9,0.7812]
[1744661295857,6.1306,1631.2,1630.9,6.91277]
[1744661296058,12.26132,1631.2,1630.9,6.91277]
[1744661296245,6.131,1631.1,1630.9,0.7812]
[1744661296448,11.94799,1631.3,1631.0,6.13093]
[1744661296654,11.94799,1631.3,1631.0,12.26202]
[1744661296968,5.808,1631.3,1631.1,6.13069]
[1744661297329,6.12955,1631.5,1631.2,6.88625]
[1744661297523,11.94799,1631.6,1631.2,1.43017037]
[1744661297728,18.07717,1631.6,1631.3,6.12981]
[1744661298460,6.12971,1631.4,1631.2,0.06130137]
[1744661298669,6.12971,1631.4,1631.1,6.19212991]
[1744661298825,6.12943,1631.5,1631.1,0.06129991]
[1744661299023,12.25892,1631.5,1631.1,12.2615]
[1744661299226,12.25892,1631.5,1631.0,7.6448112]
[1744661299227,6.13028,1631.3,1631.0,7.6448112]
[1744661299461,6.13028,1631.3,1631.0,7.6447212]
[1744661300231,6.13023,1631.3,1631.0,7.6447212]
[1744661300430,12.26058,1631.3,1631.0,7.6447212]
[1744661300788,6.13023,1631.3,1631.0,7.6447212]
[1744661301542,6.13023,1631.3,1631.0,13.7757812]
[1744661302269,6.13023,1631.3,1631.0,7.6446812]
[1744661303372,5.807,1631.5,1631.2,6.1304]
[1744661303535,12.26901,1631.6,1631.3,0.7655]
[1744661303736,8.744,1631.8,1631.3,6.89543]
[1744661303936,6.12907,1631.6,1631.3,6.89543]
[1744661304144,6.12944,1631.5,1631.3,0.7655]
[1744661304358,6.12905,1631.6,1631.3,0.7655]
[1744661304669,12.25828,1631.6,1631.3,6.89546]
[1744661304965,6.12905,1631.6,1631.3,13.02539]
[1744661305175,6.12905,1631.6,1631.3,6.89543]
[1744661306244,6.12951,1631.5,1631.3,0.7655]
[1744661306452,6.12995,1631.4,1631.1,6.91382]
[1744661306764,12.2598,1631.4,1631.1,0.7831]
[1744661307377,6.1301,1631.3,1631.1,0.7831]
[1744661307579,6.12985,1631.4,1631.1,6.91391]
[1744661308273,6.12985,1631.4,1631.1,6.97520962]
[1744661308462,12.25969,1631.4,1631.1,6.97520962]
[1744661310586,6.12984,1631.4,1631.1,13.10592962]
[1744661310879,9.12908,1631.6,1631.3,6.12997]
[1744661311169,15.25818,1631.6,1631.4,0.7507]
[1744661311339,9.12908,1631.6,1631.4,0.7507]
[1744661311542,6.13999,1631.7,1631.5,6.12932]
[1744661311874,5.743,1632.1,1631.6,0.7507]
[1744661312076,6.12795,1631.9,1631.6,6.87954]
[1744661312747,6.12899,1631.6,1631.4,0.7931]
[1744661312941,6.1286,1631.7,1631.4,6.98397841]
[1744661313163,6.12828,1631.8,1631.5,6.12932]
[1744661313380,7.735906,1631.8,1631.5,6.12932]
[1744661313671,13.864246,1631.8,1631.5,6.12932]
[1744661313898,7.735906,1631.8,1631.4,16.04312456]
[1744661314374,7.735906,1631.8,1631.5,6.19058733]
[1744661314580,12.26754,1632.0,1631.7,0.7931]
[1744661314878,6.12792,1631.9,1631.7,0.7931]
[1744661315076,6.12755,1632.0,1631.7,0.7931]
[1744661315077,12.25535,1632.0,1631.7,0.7931]
[1744661315567,25.0812285,1632.1,1631.7,6.98286965]
[1744661315769,18.01016,1632.1,1631.8,6.12807]
[1744661315980,11.88299,1632.1,1631.8,6.12807]
[1744661316144,6.13999,1632.1,1631.9,6.18893383]
[1744661316477,18.39435,1632.1,1631.7,13.05004]
[1744661316782,18.39435,1632.1,1631.7,14.65412846]
[1744661316982,6.12671,1632.2,1631.8,3.05211654]
[1744661317184,11.86943,1632.3,1632.0,6.12737]
[1744661317475,11.93299,1632.4,1631.9,0.7838]
[1744661317705,11.91909,1632.4,1632.1,6.91075]
[1744661318250,11.91909,1632.4,1632.1,0.7838]
[1744661318450,6.12651,1632.3,1632.1,0.7838]
[1744661320078,6.12632,1632.3,1631.9,0.7838]
[1744661320259,12.25442,1632.1,1631.9,0.7838]
[1744661320592,6.12721,1632.1,1631.9,0.84507166]
[1744661321155,6.12678,1632.2,1631.9,0.84507166]
[1744661321564,12.25379,1632.2,1631.9,6.97289166]
[1744661321764,6.12708,1632.1,1631.9,0.84507166]
[1744661322489,6.12678,1632.2,1631.9,6.97282166]
[1744661323295,12.25367,1632.2,1631.9,6.97282166]
[1744661323665,6.1272,1632.1,1631.9,0.84507166]
[1744661323980,7.5517802,1632.2,1631.9,0.84507166]
[1744661324158,7.5517802,1632.2,1631.9,6.97279166]
[1744661325223,14.249062,1632.3,1631.9,6.97278166]
[1744661325404,18.05897,1632.4,1632.0,6.12729]
[1744661325614,6.12654,1632.3,1632.0,9.11813456]
[1744661326212,6.12654,1632.3,1632.0,6.12729]
[1744661326823,12.25307,1632.3,1631.9,6.97280166]
[1744661327023,12.25302,1632.3,1632.0,6.12739]
[1744661327225,6.12649,1632.3,1632.0,12.25478]
[1744661327389,12.25296,1632.3,1632.0,6.12739]
[1744661328417,6.12645,1632.3,1632.0,6.12739]
[1744661328728,6.12645,1632.3,1632.0,6.18865645]
[1744661328729,12.25314,1632.3,1632.0,6.18865645]
[1744661329526,6.12645,1632.3,1632.0,6.18865645]
[1744661329690,12.25297,1632.3,1632.0,6.18865645]
[1744661331727,6.1267,1632.2,1632.0,0.06126645]
[1744661332517,6.1267,1632.2,1631.9,13.0392]
[1744661332904,6.1267,1632.2,1632.0,0.06126686]
[1744661333427,6.12715,1632.1,1631.9,0.7838]
[1744661333631,6.12715,1632.1,1631.9,6.91162]
[1744661333953,12.25373,1632.2,1631.9,6.91162]
[1744661334121,12.25352,1632.2,1631.9,6.91162]
[1744661334292,6.1267,1632.2,1631.9,6.91162]
[1744661334490,6.1267,1632.2,1631.9,6.91152]
[1744661334742,6.12745,1632.0,1631.9,0.7838]
[1744661335036,12.25593,1631.9,1631.7,0.8066]
[1744661335539,6.1282,1631.8,1631.7,0.8066]
[1744661336037,12.25598,1631.9,1631.7,0.8066]
[1744661336334,6.12796,1631.9,1631.7,0.8066]
[1744661336927,6.12723,1632.1,1631.7,0.8066]
[1744661337125,6.12721,1632.1,1631.8,6.18945651]
[1744661337334,6.12721,1632.1,1631.8,6.18935651]
[1744661337637,6.12721,1632.1,1631.8,12.31744651]
[1744661337840,6.12721,1632.1,1631.8,6.18935651]
[1744661338141,6.12708,1632.1,1631.8,12.31745651]
[1744661338503,6.12708,1632.1,1631.8,13.62986216]
[1744661338700,6.12708,1632.1,1631.8,13.56858565]
[1744661339046,3.0,1632.2,1631.9,6.12763]
[1744661339205,3.0,1632.2,1631.9,12.25535]
[1744661339538,3.0,1632.2,1632.0,6.12741]
[1744661339843,3.0,1632.2,1632.0,6.95761]
[1744661340342,6.12644,1632.3,1632.0,6.95755]
[1744661340710,6.12644,1632.3,1632.0,13.0849]
[1744661340937,11.80704,1632.4,1632.1,6.12682]
[1744661341254,0.05,1632.4,1632.3,6.87702]
[1744661342455,0.05,1632.4,1632.3,6.93827722]
[1744661342821,0.05,1632.4,1632.3,6.87702]
[1744661343012,0.05,1632.4,1632.3,9.08909146]
[1744661343747,0.05,1632.4,1632.3,2.96277146]
[1744661343987,0.05,1632.4,1632.3,9.15034583]
[1744661348128,0.05,1632.4,1632.3,9.08909146]
[1744661350346,0.05,1632.4,1632.3,2.96277146]
[1744661350764,0.05,1632.4,1632.3,9.08909146]
[1744661351482,0.05,1632.4,1632.3,9.15034403]
[1744661351671,0.05,1632.4,1632.3,12.14118859]
[1744661351835,0.05,1632.4,1632.3,12.07993602]
[1744661353075,0.05,1632.4,1632.3,9.08909146]
[1744661355887,0.05,1632.4,1632.3,9.15033897]
[1744661356769,0.05,1632.4,1632.3,12.14118353]
[1744661358543,0.05,1632.4,1632.3,12.07993602]
[1744661359141,6.12344,1633.1,1632.8,6.95513]
[1744661359372,6.9024,1633.2,1632.9,0.695513]
[1744661360172,13.02569,1633.2,1632.9,6.819483]
[1744661360569,0.7794,1633.2,1633.0,6.12367]
[1744661360885,6.90258,1633.2,1632.9,6.819483]
[1744661361055,13.02581,1633.2,1632.9,6.819483]
[1744661361253,13.02581,1633.2,1633.0,0.6819483]
[1744661361487,13.02586,1633.2,1633.0,0.6819483]
[1744661361782,13.02586,1633.2,1632.9,6.819423]
[1744661361954,13.02586,1633.2,1632.9,0.695513]
[1744661362588,6.12334,1633.1,1632.9,0.695513]
[1744661362819,6.12369,1633.0,1632.7,6.12473]
[1744661363008,6.12369,1633.0,1632.7,12.24941]
[1744661363215,6.90244,1633.2,1632.8,6.18564635]
[1744661363375,6.5034079,1633.4,1632.9,6.98166941]
[1744661363376,12.2454,1633.3,1632.9,6.98166941]
[1744661363580,9.93493,1633.4,1633.0,6.82183694]
[1744661363805,6.12257,1633.3,1633.1,0.06122533]
[1744661364086,9.93493,1633.4,1633.1,6.18447533]
[1744661364287,9.93493,1633.4,1633.1,7.48510656]
[1744661364788,3.05,1633.4,1633.2,6.12292]
[1744661366220,0.05,1633.4,1633.2,6.12283]
[1744661366376,6.13999,1633.7,1633.2,6.12283]
[1744661366377,1.11599944,1634.0,1633.4,6.87589]
[1744661366572,7.23603944,1634.0,1633.7,6.12101]
[1744661366776,6.91654,1634.0,1633.7,6.18221246]
[1744661367012,13.03666,1634.0,1633.7,6.18221246]
[1744661367311,13.03666,1634.0,1633.7,0.06120246]
[1744661367875,12.241,1633.9,1633.6,2.99084456]
[1744661368220,6.12033,1633.9,1633.6,2.99084456]
[1744661368401,6.12033,1633.9,1633.6,4.51427302]
[1744661368608,6.12033,1633.9,1633.7,0.06120304]
[1744661369417,6.12033,1633.9,1633.6,10.63550302]
[1744661369877,6.12074,1633.8,1633.5,6.12174]
[1744661371023,6.12074,1633.8,1633.4,9.86672456]
[1744661371396,6.12129,1633.7,1633.4,9.86672456]
[1744661371712,6.12129,1633.7,1633.5,0.06121056]
[1744661372022,6.12077,1633.8,1633.5,6.18300056]
[1744661372186,6.12077,1633.8,1633.5,7.72674851]
[1744661373131,12.24167,1633.8,1633.5,1.60495851]
[1744661373932,6.12112,1633.7,1633.4,0.7537]
[1744661374127,6.12155,1633.6,1633.4,0.7537]
[1744661374703,6.91457,1633.7,1633.4,6.87589]
[1744661375628,13.03578,1633.7,1633.4,6.87589]
[1744661375927,0.1713185,1633.6,1633.4,6.87589]
[1744661376224,13.03578,1633.7,1633.4,6.87589]
[1744661376529,13.03578,1633.7,1633.1,16.47461872]
[1744661376530,6.12182,1633.5,1633.2,9.87240456]
[1744661376697,12.24395,1633.5,1633.2,11.84970814]
[1744661377027,6.1222,1633.4,1633.2,5.72684814]
[1744661377531,6.1222,1633.4,1633.1,1.30063123]
[1744661377691,6.12268,1633.3,1633.1,0.06122317]
[1744661377906,0.13982494,1633.2,1633.1,6.18431317]
[1744661378233,13.03002,1633.5,1633.1,12.30759317]
[1744661378437,0.7861,1633.5,1633.1,6.18431317]
[1744661378605,6.1227,1633.3,1633.1,0.06122317]
[1744661379010,0.13982494,1633.2,1633.1,0.06122317]
[1744661379599,6.26276494,1633.2,1633.0,1.45686694]
[1744661379803,6.12294,1633.2,1633.0,0.0612271]
[1744661380038,0.13951077,1633.1,1633.0,0.0612271]
[1744661380335,6.12294,1633.2,1633.0,0.0612271]
[1744661380523,0.13812268,1633.1,1633.0,0.0612271]
[1744661380723,6.12294,1633.2,1633.0,0.0612271]
[1744661381036,0.13812268,1633.1,1633.0,0.0612271]
[1744661381338,13.04427,1633.2,1632.9,6.12393]
[1744661381570,6.26148268,1633.1,1632.8,9.11523456]
[1744661381725,6.26148268,1633.1,1632.8,10.02675802]
[1744661381907,6.26148268,1633.1,1632.8,0.97275712]
[1744661382242,6.26148268,1633.1,1632.8,0.91152346]
[1744661382445,6.12375,1633.0,1632.8,0.97275851]
[1744661382642,12.38512268,1633.1,1632.8,0.97275851]
[1744661382812,0.1371143,1633.0,1632.8,0.97275851]
[1744661383426,12.247,1633.1,1632.8,0.97275851]
[1744661384137,6.12382,1633.0,1632.8,0.97275851]
[1744661384304,6.12407,1632.9,1632.7,0.8132]
[1744661384505,6.12382,1633.0,1632.7,6.1860361]
[1744661384714,12.24768,1633.0,1632.7,6.1860361]
[1744661386653,0.13695193,1633.1,1632.9,6.88263]
[1744661386851,6.12306,1633.2,1633.0,0.688263]
[1744661387638,13.06205,1633.4,1633.0,9.86372707]
[1744661387820,6.92202,1633.4,1633.1,6.12328]
[1744661388218,13.04444,1633.4,1633.1,6.12328]
[1744661388531,13.04444,1633.4,1633.1,7.71587876]
[1744661388918,6.12263,1633.3,1633.1,1.59259876]
[1744661389918,6.12088,1633.8,1633.5,6.12163]
[1744661390118,6.12088,1633.8,1633.4,0.06122074]
[1744661390119,6.13999,1633.8,1633.4,0.06122074]
[1744661390344,0.7998,1633.9,1633.4,2.99084456]
[1744661390560,0.7998,1633.9,1633.4,3.74214456]
[1744661390728,6.92017,1633.9,1633.5,0.43542329]
[1744661390927,6.92017,1633.9,1633.6,6.12134]
[1744661391320,0.7998,1633.9,1633.5,6.18294883]
[1744661391520,6.12086,1633.8,1633.5,6.18294883]
[1744661391764,12.24177,1633.8,1633.5,7.42737788]
[1744661392059,6.92022,1633.9,1633.5,7.48858672]
[1744661392259,6.92022,1633.9,1633.6,6.1213]
[1744661392446,6.12074,1633.8,1633.5,13.54897788]
[1744661392968,6.92022,1633.9,1633.6,6.12142]
[1744661393261,6.12042,1633.9,1633.6,7.47628979]
[1744661393467,6.12042,1633.9,1633.6,13.59770979]
[1744661393670,6.12042,1633.9,1633.6,7.47620979]
[1744661393966,6.1207,1633.8,1633.6,1.41607524]
[1744661394336,6.1207,1633.8,1633.6,0.06120545]
[1744661394550,12.2411,1633.9,1633.6,0.06120545]
[1744661394866,6.12042,1633.9,1633.6,6.18264545]
[1744661395072,6.1207,1633.8,1633.6,0.06120545]
[1744661395246,6.12107,1633.7,1633.4,6.87339]
[1744661395446,12.24233,1633.7,1633.4,7.560729]
[1744661395670,6.12107,1633.7,1633.4,7.560729]
[1744661395833,6.12107,1633.7,1633.4,13.682799]
[1744661396964,0.13719369,1633.6,1633.4,13.682799]
[1744661397144,6.3583,1634.0,1633.6,6.12142]
[1744661397340,6.12074,1633.8,1633.5,6.18296979]
[1744661397540,0.14181154,1633.7,1633.5,12.30467979]
[1744661397971,0.14181154,1633.7,1633.5,6.18291979]
[1744661398542,0.14181154,1633.7,1633.5,6.12171]
[1744661398744,6.26305154,1633.7,1633.4,13.682849]
[1744661399465,6.26305154,1633.7,1633.4,13.682819]
[1744661400173,13.13976154,1633.7,1633.4,7.560729]
[1744661400412,6.12147,1633.6,1633.4,1.438639]
[1744661400693,0.14118356,1633.5,1633.2,0.7785]
[1744661400994,6.12224,1633.4,1633.2,0.06121804]
[1744661401195,6.26310951,1633.4,1633.2,0.06121804]
[1744661401396,0.14086951,1633.4,1633.2,0.06121804]
[1744661401694,0.14086951,1633.4,1633.2,6.88021684]
[1744661401875,13.05448,1633.6,1633.2,6.88021684]
[1744661402084,12.38393319,1633.5,1633.2,6.8189988]
[1744661402279,6.26191319,1633.5,1633.2,12.9418288]
[1744661402485,0.14007319,1633.5,1633.3,6.18353836]
[1744661402683,0.14007319,1633.5,1633.4,7.54534384]
[1744661402999,15.24101,1633.9,1633.6,6.12137]
[1744661403357,12.24101,1633.9,1633.6,6.12137]